Cogmind - Beta 12 *** ADVENTURER MODE // 2023.05.09 @ 15:40:54 Player: Deep Beef Result: Destroyed by YI-UF0 with YI-UF0's Doublenader Performance ------------- Evolutions (0) 0 Regions Visited (2) 400 Robots Destroyed (10) 50 Value Destroyed (183) 183 Prototype IDs (2) 40 Alien Tech Used (0) 0 Bonus (0) 0 TOTAL SCORE: 673 Bonus ------- None Cogmind --------- Core Integrity 0/250 Matter 250/300 Energy 100/100 System Corruption 0% Temperature Cool (0) Movement Core (200) Ox3 Location -10/Mines Parts ------- > --- POWER (1) -------- (None) > --- PROPULSION (2) --- (None) > --- UTILITY (2) ------ Medium Storage Unit > --- WEAPON (2) ------- (None) > --- INVENTORY (10) --- Ion Engine Small Storage Unit Small Laser Light Assault Rifle Rocket Launcher Peak State ------------ > --- POWER ------------ Light Ion Engine > --- PROPULSION ------- Wheel Wheel > --- UTILITY ---------- Medium Storage Unit Light Armor Plating > --- WEAPON ----------- Light Assault Rifle Rocket Launcher > --- INVENTORY -------- Ion Engine Light Treads Small Storage Unit EM Pulse Gun Small Laser Light Assault Rifle [Rating: 8] Favorites ----------- Power Ion Engine Engine Ion Engine Propulsion Wheel Treads Light Treads Wheel Wheel Utility Medium Storage Unit Storage Medium Storage Unit Protection Light Armor Plating Weapon EM Pulse Gun Energy Gun EM Pulse Gun Ballistic Gun Light Assault Rifle Launcher Rocket Launcher Build | -11 -10 -10 ------- Run | Jun Mat Min Slots Evolved . | . . . Power . | . . . Propulsion . | . . . Utility . | . . . Weapon . | . . . Parts Attached 13 | 6 3 4 Power 2 | 1 . 1 Engine 2 | 1 . 1 Core . | . . . Reactor . | . . . Propulsion 3 | 2 . 1 Treads 1 | . . 1 Leg . | . . . Wheel 2 | 2 . . Hover . | . . . Flight . | . . . Utility 3 | 1 2 . Device . | . . . Storage 2 | 1 1 . Processor . | . . . Hackware . | . . . Protection 1 | . 1 . Artifact . | . . . Weapon 5 | 2 1 2 Energy Gun 3 | 2 . 1 Energy Cannon . | . . . Ballistic Gun 1 | . 1 . Ballistic Cannon . | . . . Launcher 1 | . . 1 Special Weapon . | . . . Impact Weapon . | . . . Slashing Weapon . | . . . Piercing Weapon . | . . . Special Melee Weapon . | . . . Unidentified Prototypes . | . . . Parts Lost 7 | . . 7 Power 1 | . . 1 Propulsion 3 | . . 3 Utility 1 | . . 1 Weapon 2 | . . 2 Highest Loss Streak 7 | . . 7 To Critical Strikes . | . . . Average Slot Usage (%) 90 | . 86 94 Engine 13 | . 14 12 Wheel 26 | . 28 25 Storage 14 | . 14 14 Protection 7 | . 1 12 Energy Gun 14 | . 17 12 Ballistic Gun 12 | . 10 13 Naked Turns . | . . . Heaviest Build 21 | 13 21 21 Greatest Support 20 | 20 20 20 Greatest Overweight (x) 3 | . 1 3 Average Overweight (x) . | . . . Largest Inventory Capacity 10 | 8 10 10 Average Capacity 9 | 7 8 10 Most Carried 6 | . 4 6 Average Carried 3 | . 2 5 Final Capacity 10 | 8 10 10 Final Carried 5 | . 4 5 Class Distribution -------------------- 100% | Mutant Dominant Class ---------------- Mutant | -10/Materials Mutant | -10/Mines Resources | -11 -10 -10 ----------- Run | Jun Mat Min Matter Collected 311 | 256 37 18 Remotely . | . . . Salvage Created 299 | . 143 156 Parts 22 | . 11 11 Haulers Intercepted 1 | . 1 . Recyclers Shooed 1 | . . 1 Parts Field Recycled . | . . . Retrieved Matter . | . . . Parts Self-Destructed . | . . . Prevented . | . . . Kills | -11 -10 -10 ------- Run | Jun Mat Min Combat Hostiles Destroyed 8 | . 3 5 Guns 7 | . 2 5 AOE 1 | . 1 . Classes Destroyed 4 | . 4 . Hauler 1 | . 1 . Watcher 1 | . 1 . Swarmer 5 | . 2 3 Grunt 3 | . 1 2 Best Kill Streak 3 | . 2 3 Combat Bots Only 3 | . 2 3 Max Kills in Single Turn 1 | . 1 1 Gunslinging . | . . . Exploded 1 | . 1 . Melee . | . . . Uniques/NPCs Destroyed . | . . . Combat | -11 -10 -10 -------- Run | Jun Mat Min Damage Taken 838 | . 53 785 Core 258 | . . 258 Absorbed by Shields . | . . . Core Remaining (%) 100 | 100 . . Volleys Fired 20 | . 7 13 Largest 2 | . 2 2 Hottest 80 | . 80 60 Shots Fired 35 | . 14 21 Gun 30 | . 14 16 Cannon . | . . . Launcher 5 | . . 5 Special . | . . . Kinetic 11 | . 3 8 Thermal 4 | . 4 . Explosive 5 | . . 5 Electromagnetic 15 | . 7 8 Robot Hit Streak 17 | . 7 17 Robot Miss Streak 1 | . 1 1 Penetration Max . | . . . Secondary Targets 2 | . . 2 Max Gunslinging Chain 1 | . . 1 Shots Hit Robots 26 | . 9 17 Core Hits 16 | . 5 11 Critical Kills . | . . . Critical Parts Destroyed . | . . . Critical Strikes 1 | . 1 . Corrupt 1 | . 1 . Melee Attacks . | . . . Impact . | . . . Slashing . | . . . Piercing . | . . . Sneak Attacks . | . . . Combat Hostiles . | . . . Follow-up Attacks . | . . . Damage Inflicted 366 | . 132 234 Guns 249 | . 112 137 Cannons . | . . . Explosions 117 | . 20 97 Melee . | . . . Ramming . | . . . Kinetic 34 | . . 34 Thermal 44 | . 44 . Explosive 97 | . . 97 Electromagnetic 191 | . 88 103 Impact . | . . . Slashing . | . . . Piercing . | . . . Highest Corruption . | . . . Average Corruption . | . . . Corruption Purged . | . . . Corruption Blocked . | . . . Overload Shots . | . . . Overflow Damage . | . . . Projectiles . | . . . Explosions . | . . . Melee . | . . . Knockbacks . | . . . Impact . | . . . Kinetic . | . . . Secondary . | . . . Self-Inflicted Damage 22 | . 22 . Shots 1 | . 1 . Rammed 1 | . . 1 Targets Rammed 1 | . . 1 Kicked . | . . . Crushed . | . . . Highest Temperature 90 | . 84 90 Average Temperature 39 | . 33 44 Received Heat Transfer 66 | . 6 60 Siege Activations . | . . . Robots Corrupted . | . . . Combat Hostiles . | . . . Parts Fried . | . . . Impact Corruptions . | . . . Robots Melted . | . . . Combat Hostiles . | . . . Parts Melted . | . . . Heat Transferred 50 | . 50 . Parts Sabotaged . | . . . Parts Stolen . | . . . Parts Stripped . | . . . Power Chain Reactions 1 | . 1 . Missiles Intercepted . | . . . Alert | -11 -10 -10 ------- Run | Jun Mat Min Peak Influence 181 | . 128 181 Initial 41 | . . 41 Average 90 | . 69 121 Maximum Alert Level . | . . . Low Security (%) 100 | 100 100 100 Level 1 . | . . . Level 2 . | . . . Level 3 . | . . . Level 4 . | . . . Level 5 . | . . . High Security . | . . . Max Security . | . . . Squads Dispatched 2 | . 2 . Investigation 2 | . 2 . Extermination . | . . . Reinforcement . | . . . Assault . | . . . Garrison . | . . . Intercept . | . . . Searches Triggered . | . . . Construction Impeded . | . . . Haulers Reinforced . | . . . Active Scanning Responses . | . . . Cargo Convoy Interrupts . | . . . Stealth | -11 -10 -10 --------- Run | Jun Mat Min Distress Signals . | . . . Communications Jammed . | . . . Distress Signals . | . . . Times Spotted 12 | . 5 7 Peak Tracking Total 4 | . 4 3 Tactical Retreats 1 | . . 1 Traps | -11 -10 -10 ------- Run | Jun Mat Min Traps Triggered 1 | . 1 . Indirectly . | . . . Trap Hack Attempts . | . . . Triggered . | . . . Disarmed . | . . . Reprogrammed . | . . . Reused . | . . . Traps Extracted . | . . . Installed . | . . . Triggered . | . . . Machines | -11 -10 -10 ---------- Run | Jun Mat Min Machines Disabled . | . . . Max in Single Turn . | . . . Machines Repaired . | . . . Machines Sabotaged . | . . . Overloaded Fab Kills . | . . . Hacking | -11 -10 -10 --------- Run | Jun Mat Min Machines Accessed 3 | . 3 . Terminals 3 | . 3 . Fabricators . | . . . Repair Stations . | . . . Recycling Units . | . . . Scanalyzers . | . . . Garrison Access . | . . . Total Hacks 9 | . 9 . Successful 7 | . 7 . Failed 2 | . 2 . Catastrophic 1 | . 1 . Database Lockouts . | . . . Manual 5 | . 5 . Terminals 9 | . 9 . Fabricators . | . . . Repair Stations . | . . . Recycling Units . | . . . Scanalyzers . | . . . Garrison Access . | . . . Terminal Hacks 5 | . 5 . Robot Analysis 2 | . 2 . Prototype ID Bank 1 | . 1 . Branch Access Points 1 | . 1 . Terminal Index 1 | . 1 . Fabricator Hacks . | . . . Repair Station Hacks . | . . . Recycling Unit Hacks . | . . . Scanalyzer . | . . . Garrison Access Hacks . | . . . Unauthorized Hacks 2 | . 2 . Terminals 2 | . 2 . Botnet 2 | . 2 . Fabricators . | . . . Repair Stations . | . . . Recycling Units . | . . . Scanalyzers . | . . . Garrison Access . | . . . Data Cores Recovered . | . . . Used . | . . . Hacking Detections 3 | . 3 . Full Trace Events 1 | . 1 . Feedback Events . | . . . Feedback Blocked . | . . . Robot Schematics Acquired . | . . . Robots Built . | . . . Authchips . | . . . Time . | . . . Total Robot Build Rating . | . . . Part Schematics Acquired . | . . . Parts Built . | . . . Authchips . | . . . Time . | . . . Total Part Build Rating . | . . . Parts Repaired . | . . . Time . | . . . Parts Recycled . | . . . Recycled Matter . | . . . Retrieved Matter . | . . . Retrieved Components . | . . . Parts Scanalyzed . | . . . Part Schematics Acquired . | . . . Parts Damaged . | . . . Bothacking | -11 -10 -10 ------------ Run | Jun Mat Min Used RIF Installer . | . . . Robots Hacked . | . . . Non-combat . | . . . Combat . | . . . Robot Hacks Applied . | . . . Relay Couplers Released . | . . . Fabnet Peak Effective % . | . . . Robots Rewired . | . . . Allies Hacked . | . . . Hacks Repelled . | . . . Allies | -11 -10 -10 -------- Run | Jun Mat Min Total Allies . | . . . Largest Group . | . . . Highest-Rated Group . | . . . Highest-Rated Ally . | . . . Total Orders . | . . . Ally Attacks . | . . . Total Damage . | . . . Kills . | . . . Allies Corrupted . | . . . Allies Melted . | . . . Intel | -11 -10 -10 ------- Run | Jun Mat Min Robot Analysis Total 2 | . 2 . Derelict Logs Recovered 1 | . . 1 Drone Launches . | . . . Drone Recoveries . | . . . Exploration | -11 -10 -10 ------------- Run | Jun Mat Min Turns Passed 519 | 33 228 258 Spaces Moved 490 | 31 228 231 Core 4 | 1 . 3 Treads 4 | . . 4 Legs . | . . . Wheels 482 | 30 228 224 Hover . | . . . Flight . | . . . Fastest Speed 50 | 50 80 80 Average Speed 86 | 79 81 92 Slowest Speed 200 | 80 95 200 Overloaded Moves . | . . . Propulsion Burnouts . | . . . Robots Hopped . | . . . Cave-ins Triggered . | . . . Exploration Rate (%) 30 | 2 35 54 Regions Visited 2 Branch Regions 1 Pre-discovered Areas 1 | . . 1 Known Exits Taken 1 | . 1 . Unknown Exits Taken 1 | 1 . . Scrap Searched 1 | . . 1 Spaces Dug . | . . . Terrain Destroyed 30 | . 3 27 Melee . | . . . Projectile . | . . . AOE 30 | . 3 27 Terrain Rammed . | . . . Walls Destroyed . | . . . Machines Disabled . | . . . Actions | -11 -10 -10 --------- Run | Jun Mat Min Total 546 | 36 255 255 Wait 18 | . 15 3 Move 488 | 30 227 231 Hop . | . . . Pick Up 5 | . 3 2 Fast Attach 7 | 6 1 . Attach 1 | . . 1 Detach . | . . . Swap 5 | . 2 3 Drop . | . . . Fire 20 | . 7 13 Melee . | . . . Ram 1 | . . 1 Kick . | . . . Crush . | . . . Escape Stasis . | . . . Rewire 1 | . . 1 Trap . | . . . Miscellaneous . | . . . Route ------- -11/Junkyard -10/Materials -10/Mines (discovered 1 exit: [*Mat]) History --------- Turn | Location | Event 15 | -11/Junkyard | Discovered new exit (range 16) 34 | -11/Junkyard | Entered Materials 135 | -10/Materials | Identified exit to Mines 262 | -10/Materials | Entered Mines 269 | -10/Mines | Received a Rocket Launcher from a helpful Derelict 282 | -10/Mines | Discovered new exit (range 7) 301 | -10/Mines | Build established: Mutant 515 | -10/Mines | Core integrity fell below 50% 519 | -10/Mines | Core integrity fell below 20% 520 | -10/Mines | Destroyed by YI-UF0 with YI-UF0's Doublenader Last Messages --------------- T-07 Excavator is broken beyond repair. U-05 Engineer builds a Wall. U-05 Engineer lays Concrete. U-05 Engineer builds a Wall. The unstable cave ceiling collapses. T-07 Excavator destroyed. Wheel destroyed. The unstable cave ceiling collapses. Wheel destroyed. The unstable cave ceiling collapses. Lgt. Armor Plating destroyed. The unstable cave ceiling collapses. Lgt. Ion Engine destroyed. The unstable cave ceiling collapses. EM Pulse Gun destroyed. YI-UF0 mumbles something. The unstable cave ceiling collapses. Lgt. Treads destroyed. Lgt. Assault Rifle destroyed. The unstable cave ceiling collapses. Map ----- +----------------------------------------------------+ | #???# #??????? ?????????????????????????????? | | ###???# #??????? ?????????????????????????????? | | #?????# #####??? ?????????????????????????????? | | #?????# ## ##??# ?????????????????????????????? | | ####??# # #### #?????????????????????????????? | | ##?# #?????????????????????????????? | | #?# #?# #?###?????????????????????????? | | #?# ### ### #?????????????????????????? | | # #### ## ## ##????????????????????????? | | ###### # # ##???????????????????????? | | ????# ##??????????????????????? | | ???## #??????????????????????? | | ??## ###### #??????????????????????? | | ?## ##????# ##??????????????????????? | | ?# ##????# ###???????????????????????? | | ?# #????# #?????????????????????????? | | ## #???# #?????????????????????????? | | # ### #?### ###???????????????????????? | | ##?# #?# # # #???????????????????????? | | ##??## #?# #! # #???????????????????????? | | ##????### ######%%# ####????????????????????? | | ##???????##### # ###??????????????????? | | #????????????# ##?????????????????? | | ?####???????## ! #?????????????????? | | ## ##??????# # =##????????????????? | | #???##### @g #????????????????? | | ##???# """ #???????????????? | | ####????# """ !| ??????????? | | ##???????# """ !% ?????????? | | #????????# # # # # #! ?????????? | | #???????# # # #########? # # ??????????? | | #???????# #######?????????? ?????????????? | | ##???????#######?????????????????####????????????? | | #????????????????????????????????????????????????? | | ?????????????????????????????????????????????????? | | ?????????????????????????????????????????????????? | | ?????????????????????????????????????????????????? | | ?????????????????????????????????????????????????? | | ?????????????????????????????????????????????????? | | ?????????????????????????????????????????????????? | | ?????????????????????????????????????????????????? | | | | | | | | | | | | | | | | | | | +----------------------------------------------------+ Best States ------------- Heat Dissipation 25 Energy Generation 10 Energy Capacity 250 Matter Stores 300 Matter Capacity 300 Sight Range 16 Terrain Scan Density 10 Armor Coverage 150 Resistance: KI 20 Resistance: TH 20 Resistance: EX 20 Resistance: EM 20 Resistance: I 20 Resistance: S 20 Resistance: P 20 Evasion (%) 44 Recoil Reduction 1 Offensive Hacking 10 Item Schematics ----------------- None Robot Schematics ------------------ None Fabricated ------------ Nothing Alien Tech Used ----------------- None Achievements -------------- None Challenges ------------ None Game ------ Seed ColdSigixNanoactuators Manual? 0 Play Time 00:11:16 Cumulative 127.3 hours Start 2023.05.09 @ 12:48:43 End 2023.05.09 @ 15:40:54 Sessions 1 Manual Loads 0 Difficulty Adventurer Special Mode None Game No. 120 Rogue 72 Adventurer 48 Explorer 0 Win Type - Total 0 Types 0/0/0/0/0/0/0/0/0 Lore% 41 Gallery% 54 Achievement% 41 Wizard Run 0 Options --------- ASCII 0 Keyboard 0 Movement Mouse Keybinds 0 Fullscreen 1 Font 12/Smallcaps Map View 83x54 Tactical HUD 0 Map Filters NONE Filters NONE Steam 1 RUN: f779d1fb-5cc1-4e8a-81ce-88e522547e11